bitfinex-derivatives/quotes_ETHF0:USTF0_20260226
["timestamp","ask_amount","ask_price","bid_price","bid_amount"]
[1772125351678,18.85548319,1986.9,1986.0,12.655]
[1772125351879,0.00405278,1987.1,1986.1,18.15549836]
[1772125352079,18.85548319,1986.7,1985.4,18.15549836]
[1772125352277,18.85548319,1986.5,1985.4,18.15549836]
[1772125352477,18.85548319,1986.4,1985.4,18.15549836]
[1772125352681,18.85548319,1986.4,1985.5,12.656]
[1772125352888,18.85548319,1986.4,1984.9,40.8]
[1772125352889,18.85548319,1986.2,1985.0,18.15549836]
[1772125353183,31.07148319,1986.1,1985.2,18.15549836]
[1772125353686,18.85548319,1986.0,1985.2,18.15549836]
[1772125354972,12.216,1986.1,1985.2,18.15549836]
[1772125355175,12.224,1986.4,1985.2,18.15549836]
[1772125355474,29.91102458,1986.4,1985.2,18.15549836]
[1772125355679,35.20609299,1986.7,1985.4,17.00948229]
[1772125355875,17.68702458,1986.6,1985.6,17.00948229]
[1772125356583,17.68702458,1986.9,1985.6,17.00948229]
[1772125357186,12.225,1987.0,1985.6,17.00948229]
[1772125357479,12.225,1987.0,1985.8,17.00948229]
[1772125357787,17.69107736,1987.1,1986.0,17.00948229]
[1772125357788,0.00405278,1987.1,1986.0,17.00948229]
[1772125358285,0.00405278,1987.1,1986.2,17.00948229]
[1772125358481,0.00405278,1987.1,1986.4,17.00948229]
[1772125359281,17.68702458,1987.0,1986.2,12.69079575]
[1772125359676,17.68702458,1987.0,1986.2,0.00579575]
[1772125359881,17.93865458,1987.0,1985.9,16.94319884]
[1772125360485,17.61557374,1986.8,1985.9,16.94319884]
[1772125360986,12.231,1986.7,1985.9,16.94911487]
[1772125361182,29.84657374,1986.7,1985.9,16.94911487]
[1772125361384,17.61557374,1987.0,1985.9,16.94911487]
[1772125361782,0.00405278,1987.1,1985.9,17.20087487]
[1772125362185,0.00405278,1987.1,1985.9,17.42739735]
[1772125362385,0.00405278,1987.1,1985.9,17.20087487]
[1772125363084,17.61557374,1987.9,1986.4,16.94319884]
[1772125363282,17.61557374,1988.2,1986.8,16.94319884]
[1772125363483,17.61557374,1988.2,1987.0,16.94319884]
[1772125364391,17.61557374,1987.8,1986.7,29.64019884]
[1772125364589,29.84357374,1987.7,1986.8,16.94319884]
[1772125364980,17.61557374,1987.6,1986.8,16.94319884]
[1772125365186,17.61557374,1987.5,1986.3,16.94319884]
[1772125366987,17.61557374,1987.5,1986.3,14.94319884]
[1772125368987,12.228,1987.7,1986.0,16.94319884]
[1772125368988,17.61557374,1987.1,1986.0,16.94319884]
[1772125369190,17.61557374,1986.9,1986.0,16.94319884]
[1772125369391,29.85557374,1986.9,1986.0,16.94319884]
[1772125370087,12.24,1986.9,1986.0,16.94319884]
[1772125371190,12.242,1987.2,1986.0,16.94319884]
[1772125371691,12.242,1987.2,1986.0,17.19494884]
[1772125371890,17.86714374,1987.5,1986.0,17.19494884]
[1772125372293,17.61557374,1987.3,1986.2,16.94319884]
[1772125373594,17.61557374,1987.1,1986.2,16.94319884]
[1772125373791,17.61557374,1986.9,1986.2,16.94319884]
[1772125373994,17.61557374,1986.9,1986.1,12.709]
[1772125374189,17.61557374,1986.9,1985.9,0.00591603]
[1772125374386,17.61557374,1986.7,1985.9,0.00591603]
[1772125374591,17.61557374,1986.5,1985.9,0.00591603]
[1772125375695,17.61557374,1986.3,1985.4,16.94319884]
[1772125375891,12.258,1986.2,1985.4,16.94319884]
[1772125376597,12.258,1986.2,1985.4,16.94844875]
[1772125377091,12.258,1986.2,1985.5,29.67019884]
[1772125377292,12.258,1986.2,1985.6,16.94319884]
[1772125377896,29.88457374,1986.5,1985.6,16.94319884]
[1772125378692,17.61557374,1986.4,1985.6,16.94319884]
[1772125378890,17.61557374,1986.4,1985.4,16.94844875]
[1772125382097,17.61557374,1986.6,1985.4,17.20025875]
[1772125382302,0.0057914,1986.7,1985.4,17.20025875]
[1772125382903,0.0057914,1986.7,1985.9,16.94319884]
[1772125383095,0.0057914,1986.7,1986.1,16.94319884]
[1772125383300,17.62136514,1986.7,1986.1,16.94319884]
[1772125383502,17.62136514,1986.7,1986.0,12.797]
[1772125383903,0.0057914,1986.7,1986.1,16.94319884]
[1772125386406,17.61557374,1987.1,1986.1,16.94319884]
[1772125386603,12.28,1987.2,1986.1,17.19493884]
[1772125387105,17.61557374,1987.1,1986.1,17.19493884]
[1772125387406,17.61557374,1987.3,1986.3,16.94319884]
[1772125387707,17.61557374,1986.9,1985.9,16.94319884]
[1772125387909,17.61557374,1986.9,1986.0,16.94319884]
[1772125388206,0.00469481,1987.1,1986.4,16.94319884]
[1772125388408,17.62026855,1987.1,1986.5,16.94319884]
[1772125389101,17.62026855,1987.1,1986.4,12.827]
[1772125389304,17.62026855,1987.1,1986.4,29.77019884]
[1772125389706,17.62026855,1987.1,1986.5,16.44550393]
[1772125389707,0.00469481,1987.1,1986.5,16.44550393]
[1772125391108,15.95465415,1987.5,1986.5,16.44550393]
[1772125391310,0.25149,1988.1,1986.4,12.827]
[1772125391311,15.95465415,1988.0,1986.7,16.44550393]
[1772125391509,15.95465415,1987.8,1986.8,12.845]
[1772125391807,15.95465415,1987.4,1986.3,29.29050393]
[1772125392011,5.81686298,1988.0,1987.3,16.44550393]
[1772125392211,8.372,1989.9,1987.9,16.44550393]
[1772125392511,8.372,1989.9,1987.3,0.32907129]
[1772125392512,12.282,1990.0,1988.7,16.44550393]
[1772125392705,15.95465415,1989.9,1988.7,16.44550393]
[1772125392907,15.95465415,1989.7,1988.7,16.44550393]
[1772125393306,3.79913454,1989.4,1988.7,16.45166252]
[1772125393502,15.95465415,1989.5,1988.7,16.45166252]
[1772125393916,3.79913454,1989.3,1988.7,16.45166252]
[1772125394112,28.24065415,1989.2,1988.7,0.00615859]
[1772125394408,15.95465415,1988.8,1988.0,0.08751767]
[1772125394609,28.23965415,1988.7,1988.0,0.08751767]
[1772125394912,28.23965415,1988.7,1987.5,16.44550393]
[1772125395112,15.95465415,1988.6,1987.5,16.44550393]
[1772125395413,5.80256434,1988.6,1987.7,16.44550393]
[1772125395710,28.24465415,1988.7,1987.7,16.44550393]
[1772125396309,32.04378869,1988.7,1987.7,16.44550393]
[1772125396503,15.95465415,1989.5,1987.7,16.44550393]
[1772125396705,12.291,1989.6,1987.9,16.44550393]
[1772125396906,0.00652451,1989.7,1988.4,16.44550393]
[1772125397107,0.00652451,1989.7,1988.6,16.44550393]
[1772125397108,15.96117866,1989.7,1988.6,16.44550393]
[1772125397605,19.7603132,1989.7,1988.6,16.44550393]
[1772125397809,0.00652451,1989.7,1988.6,16.44550393]
[1772125398109,12.286,1989.6,1988.6,16.44550393]
[1772125398313,0.00652451,1989.7,1988.8,16.44550393]
[1772125398715,12.285,1990.1,1988.8,16.44550393]
[1772125399412,15.95465415,1990.6,1989.2,16.44550393]
[1772125399614,15.95465415,1990.6,1989.4,16.44550393]
[1772125399913,15.96065414,1990.6,1989.4,16.44550393]
[1772125400107,0.00599999,1990.6,1989.4,16.44550393]
[1772125400407,0.00599999,1990.6,1989.6,16.44550393]
[1772125400604,15.96065414,1990.6,1989.8,16.44550393]
[1772125401108,0.00599999,1990.6,1989.9,16.44550393]
[1772125401308,15.96065414,1990.6,1989.3,16.44550393]
[1772125401513,15.95465415,1990.4,1989.3,16.44550393]
[1772125401810,15.95465415,1990.4,1989.1,16.45025952]
[1772125402110,16.20586415,1990.3,1989.1,0.00475559]
[1772125402311,15.95465415,1989.8,1989.1,0.00475559]
[1772125402515,28.23465415,1989.7,1989.1,0.00475559]
[1772125402810,15.95465415,1989.5,1989.1,0.00475559]
[1772125403011,28.23665415,1989.5,1989.1,0.00475559]
[1772125403211,15.95465415,1990.1,1989.2,16.44550393]
[1772125403714,15.95465415,1989.9,1989.1,0.00475559]
[1772125403916,28.23965415,1989.9,1989.1,16.45025952]
[1772125404212,12.285,1989.9,1989.1,16.45025952]
[1772125404812,32.03878869,1989.9,1989.1,16.45025952]
[1772125405011,12.285,1989.9,1989.1,16.45025952]
[1772125405209,15.95465415,1990.2,1989.1,16.45025952]
[1772125405210,12.291,1990.2,1989.1,16.45025952]
[1772125405808,12.29599999,1990.6,1989.3,16.44550393]
[1772125406005,12.29599999,1990.6,1989.5,16.44550393]
[1772125406210,15.95465415,1990.5,1989.5,16.44550393]
[1772125406417,28.25065414,1990.6,1989.5,16.44550393]
[1772125406715,0.00599999,1990.6,1989.5,16.44550393]
[1772125406910,12.291,1990.5,1989.5,16.44550393]
[1772125407109,15.95465415,1990.3,1989.5,16.44550393]
[1772125407714,3.79913454,1990.0,1989.5,16.44550393]
[1772125408013,15.95465415,1990.3,1989.5,16.44550393]
[1772125408309,0.00599999,1990.6,1989.4,16.44550393]
[1772125408515,0.00599999,1990.6,1989.3,0.25133]
[1772125408516,15.96065414,1990.6,1989.7,16.44550393]
[1772125408706,6.59399999,1990.6,1989.7,16.44550393]
[1772125409112,10.39313453,1990.6,1989.7,16.44550393]
[1772125409413,15.95465415,1990.5,1989.7,16.44550393]
[1772125409614,3.79913454,1990.2,1989.2,16.44550393]
[1772125409815,15.95465415,1990.0,1989.2,16.44550393]
[1772125410016,12.289,1989.9,1989.2,16.44550393]
[1772125410819,16.08813454,1989.9,1989.2,16.44550393]
[1772125411015,12.289,1989.9,1989.2,16.44550393]
[1772125411517,3.79913454,1989.8,1989.2,16.44550393]
[1772125411718,12.289,1989.9,1989.2,16.44550393]
[1772125411919,3.79913454,1989.7,1989.2,16.44550393]
[1772125412518,12.296,1989.9,1989.2,16.44550393]
[1772125412717,28.25065415,1989.9,1989.2,16.44550393]
[1772125412922,15.95465415,1989.6,1988.9,16.44550393]
[1772125413112,12.296,1989.5,1988.7,16.44550393]
[1772125413311,12.298,1989.6,1988.7,16.44550393]
[1772125413718,12.298,1989.6,1988.8,16.44550393]
[1772125413910,12.298,1990.1,1989.0,16.44550393]
[1772125414114,12.298,1990.2,1989.2,16.44550393]
[1772125415516,15.99327736,1990.2,1989.2,16.44550393]
[1772125415721,12.298,1990.2,1989.2,16.44550393]
[1772125415922,27.71748314,1990.2,1989.2,16.44550393]
[1772125416119,19.1147605,1990.0,1989.2,16.44550393]
[1772125416322,15.41948314,1990.0,1989.2,16.44550393]
[1772125416621,15.41948314,1990.0,1988.8,0.00489077]
[1772125416622,15.41948314,1989.8,1988.9,14.62372195]
[1772125416815,15.41948314,1989.6,1988.6,14.62372195]
[1772125417013,12.303,1989.7,1988.3,14.62372195]
[1772125417014,15.41948314,1989.4,1988.3,14.62372195]
[1772125417223,15.41948314,1989.8,1988.3,14.62372195]
[1772125417419,27.72348314,1989.7,1988.5,14.62372195]
[1772125417724,15.41948314,1989.6,1988.5,14.62884604]
[1772125417919,12.304,1989.7,1988.5,14.62884604]
[1772125418126,12.305,1990.1,1988.9,14.62372195]
[1772125418325,12.305,1990.0,1989.1,14.62372195]
[1772125419124,15.41948314,1989.9,1989.1,14.62372195]
[1772125419318,12.305,1990.0,1989.1,14.62372195]
[1772125419720,3.69527736,1989.8,1989.1,14.62372195]
[1772125419922,14.57175937,1989.9,1988.8,15.88510924]
[1772125420918,14.57175937,1989.7,1988.5,15.89023333]
[1772125421118,12.308,1989.6,1988.5,15.89023333]
[1772125422123,26.87975937,1989.6,1988.5,15.89023333]
[1772125422320,18.26703673,1989.5,1988.5,15.89023333]
[1772125422722,14.57175937,1989.4,1988.5,15.89023333]
[1772125422923,14.57175937,1989.0,1988.1,15.88510924]
[1772125423128,14.57175937,1989.0,1987.0,13.09796447]
[1772125423129,14.57175937,1988.8,1987.8,15.88510924]
[1772125423627,12.311,1988.9,1987.8,15.88510924]
[1772125423926,14.57175937,1988.7,1987.8,15.89075087]
[1772125425315,3.69527736,1988.3,1987.8,15.89075087]
[1772125425521,12.313,1988.4,1987.8,15.89075087]
[1772125426028,3.69527736,1988.1,1987.8,15.89075087]
[1772125426224,14.57175937,1988.6,1987.8,15.89075087]
[1772125426225,14.57175937,1988.8,1987.8,15.89075087]
[1772125426434,12.314,1988.7,1987.8,15.89075087]
[1772125426625,12.314,1988.7,1987.9,15.88510924]
[1772125426817,0.00634745,1988.9,1987.9,15.88510924]
[1772125427019,12.315,1989.2,1988.3,15.88510924]
[1772125427230,14.57175937,1990.0,1988.3,15.88510924]
[1772125427429,14.57175937,1989.7,1988.3,15.88510924]
[1772125427827,0.25547863,1989.2,1988.3,15.88510924]
[1772125428028,12.314,1989.1,1988.3,15.88510924]
[1772125428223,14.57175937,1989.0,1988.3,15.88510924]
[1772125428432,14.57175937,1989.0,1987.9,15.88510924]
[1772125428834,0.25547863,1988.6,1987.9,15.88510924]
[1772125429228,26.88575937,1988.7,1987.9,15.88510924]
[1772125429433,12.314,1988.7,1987.9,15.88510924]
[1772125429931,0.25547863,1988.5,1987.9,15.88510924]
[1772125430129,12.314,1988.7,1987.9,15.88510924]
[1772125430728,12.314,1988.7,1988.0,15.88510924]
[1772125430928,0.25547863,1988.6,1988.0,15.88510924]
[1772125431332,0.25547863,1988.5,1988.0,15.88510924]
[1772125431533,12.32,1989.0,1988.0,15.88510924]
[1772125431927,0.25547863,1988.6,1988.0,15.88510924]
[1772125432328,0.25547863,1988.4,1988.0,15.88510924]
[1772125432529,14.57175937,1988.9,1988.0,15.88510924]
[1772125433026,14.57175937,1988.6,1987.8,15.89075087]
[1772125433231,12.57138,1989.0,1987.8,15.89075087]
[1772125433232,26.88875937,1988.5,1987.8,15.89075087]
[1772125433433,0.25547863,1988.0,1987.8,15.89075087]
[1772125433824,1e-08,1987.9,1987.8,15.89075087]
[1772125434132,14.57175937,1988.3,1987.2,15.88510924]
[1772125435033,14.82317937,1988.6,1987.2,16.14078963]
[1772125435335,14.57175937,1988.3,1987.2,15.88918963]
[1772125436630,14.57175937,1988.1,1987.2,15.88918963]
[1772125437030,14.57175937,1988.4,1987.2,15.88918963]
[1772125437230,26.89275937,1988.3,1987.2,15.88918963]
[1772125437429,12.321,1988.2,1987.2,15.88918963]
[1772125437725,12.322,1988.1,1987.2,15.88918963]
[1772125437931,12.322,1988.1,1987.4,15.88510924]
[1772125438333,12.323,1988.5,1987.4,15.88510924]
[1772125438530,14.57175937,1989.0,1987.6,15.88510924]
[1772125438732,12.323,1988.9,1987.8,15.88510924]
[1772125439535,26.89475937,1988.9,1987.8,15.88510924]
[1772125440035,26.89475937,1988.9,1988.0,15.88510924]
[1772125440036,12.323,1988.9,1988.0,15.88510924]
[1772125440235,14.57175937,1988.8,1988.0,15.88510924]
[1772125440437,14.57175937,1988.6,1987.8,15.88510924]
[1772125440638,14.57175937,1988.4,1987.8,15.88510924]
[1772125440833,14.57175937,1988.4,1987.5,15.88510924]
[1772125441839,0.2560894,1989.2,1987.6,0.25155]
[1772125442037,0.2560894,1989.2,1987.8,15.88510924]
[1772125442038,12.328,1989.1,1987.8,15.88510924]
[1772125442440,12.328,1989.1,1988.0,16.13659924]
[1772125442742,12.328,1989.1,1988.2,15.88510924]
[1772125442940,26.89975937,1989.1,1988.2,15.88510924]
[1772125443139,14.57175937,1989.0,1988.2,15.88510924]
[1772125443444,14.57175937,1989.0,1987.9,15.88510924]
[1772125444644,14.57175937,1989.0,1988.0,13.041]
[1772125444843,14.57175937,1989.0,1988.1,15.88510924]
[1772125445744,14.57175937,1988.6,1987.6,15.88510924]
[1772125446044,14.57175937,1988.2,1987.3,15.88510924]
[1772125446243,26.90375937,1988.1,1987.3,15.88510924]
[1772125447248,12.332,1988.1,1987.3,15.88510924]
[1772125447745,12.34,1988.2,1987.3,15.88510924]
[1772125448456,14.57175937,1988.1,1987.2,0.00408039]
[1772125448844,14.57175937,1987.9,1986.8,15.88510924]
[1772125449048,14.57175937,1987.7,1986.8,15.88510924]
[1772125449748,12.34,1987.8,1986.8,15.88510924]
[1772125449944,12.34490861,1987.8,1986.8,15.88938377]
[1772125450148,15.3548345,1988.6,1987.0,14.77880684]
[1772125450443,15.1034145,1988.4,1987.2,14.77880684]
[1772125451252,0.00450565,1988.4,1987.3,0.25159]
[1772125451449,0.00450565,1988.4,1987.4,14.77880684]
[1772125451853,15.10792015,1988.4,1987.2,14.77880684]
[1772125452055,15.1034145,1988.2,1987.2,14.77880684]
[1772125452347,15.1034145,1988.0,1986.9,14.77880684]
[1772125455651,15.1034145,1988.0,1987.1,14.77880684]
[1772125456858,15.1034145,1988.0,1986.8,14.78308137]
[1772125457357,15.1034145,1988.3,1987.2,14.77880684]
[1772125457548,0.00450565,1988.4,1987.4,14.77880684]
[1772125457854,15.1034145,1989.0,1987.7,14.77880684]
[1772125458060,15.1034145,1989.0,1987.9,14.77880684]
[1772125458358,15.1034145,1989.2,1988.1,14.77880684]
[1772125459053,15.10744119,1989.2,1988.1,14.77880684]
[1772125459560,0.00402669,1989.2,1988.1,16.69031962]
[1772125460661,15.10744119,1989.2,1988.1,14.77880684]
[1772125461963,15.10744119,1989.2,1987.9,14.77880684]
[1772125462355,15.1034145,1989.0,1987.9,14.77880684]
[1772125462559,15.1034145,1989.0,1988.0,14.77880684]
[1772125462857,12.35,1988.9,1988.0,14.77880684]
[1772125463960,12.35,1988.9,1987.9,13.132]
[1772125463961,0.00402669,1989.2,1988.3,14.77880684]
[1772125464163,12.349,1989.4,1988.5,16.69031962]
[1772125464365,12.349,1989.4,1988.5,14.77880684]
[1772125465065,12.35498328,1989.4,1988.5,14.77880684]
[1772125466258,12.35498328,1989.4,1988.6,14.77880684]
[1772125466459,0.00598328,1989.4,1988.6,14.77880684]
[1772125467359,0.00598328,1989.4,1988.5,13.144]
[1772125467360,15.1034145,1990.0,1988.9,0.25138]
[1772125467561,15.1034145,1990.3,1989.1,14.77880684]
[1772125468354,15.10937838,1990.3,1989.1,14.77880684]
[1772125469365,12.344,1990.2,1989.1,14.77880684]
[1772125469765,15.1034145,1990.1,1989.1,14.77880684]
[1772125470866,15.1034145,1990.1,1988.8,14.77880684]
[1772125471967,15.1034145,1989.9,1988.8,14.77880684]
[1772125472266,15.1034145,1989.7,1988.5,14.77880684]
[1772125472461,15.1034145,1989.5,1988.5,14.77880684]
[1772125472662,15.1034145,1989.3,1988.5,14.77880684]
[1772125474364,15.1034145,1989.8,1988.6,14.77880684]
[1772125474571,15.1034145,1989.8,1988.8,14.77880684]
[1772125474772,27.4564145,1989.8,1988.8,14.77880684]
[1772125474977,15.1034145,1989.7,1988.8,14.77880684]
[1772125475273,6.17887,1990.6,1988.8,14.77880684]
[1772125475274,12.353,1989.6,1988.8,14.77880684]
[1772125475667,0.25717388,1990.3,1988.3,6.19191829]
[1772125475668,12.352,1990.0,1989.0,14.274657]
[1772125475867,13.72469104,1990.2,1989.0,14.274657]
[1772125476067,13.72469104,1990.2,1989.2,14.274657]
[1772125476268,0.00596388,1990.3,1989.4,14.274657]
[1772125476869,0.00596388,1990.3,1989.6,14.274657]
[1772125477074,13.72469104,1990.7,1989.6,14.274657]
[1772125477275,13.72469104,1990.7,1989.8,14.274657]
[1772125477475,12.351,1990.8,1989.8,14.274657]
[1772125477674,26.07569104,1990.8,1989.8,14.274657]
[1772125478270,0.00560198,1990.8,1989.8,14.27932978]
[1772125478477,13.72469104,1990.7,1989.8,14.27932978]
[1772125478873,13.72469104,1990.7,1989.9,14.274657]
[1772125479272,12.35760198,1990.8,1989.9,14.274657]
[1772125479575,26.08229302,1990.8,1989.9,14.274657]
[1772125480170,13.73029302,1990.8,1989.9,14.274657]
[1772125480472,0.00560198,1990.8,1989.9,14.274657]
[1772125480676,0.00560198,1990.8,1989.9,14.525907]
[1772125480867,14.02231322,1990.8,1989.9,14.274657]
[1772125481071,14.01671124,1990.6,1989.9,14.274657]
[1772125482376,14.01671124,1990.6,1989.8,0.00467278]
[1772125483079,14.01671124,1990.6,1989.8,13.10954688]
[1772125484473,26.37731322,1990.8,1989.8,13.10954688]
[1772125484671,14.02231322,1990.8,1989.8,13.10954688]
[1772125484872,12.355,1990.7,1989.8,13.10954688]
[1772125485378,12.355,1990.7,1989.8,11.10954688]
[1772125485574,14.01671124,1990.6,1989.8,11.10954688]
[1772125486279,12.355,1990.6,1989.8,11.10954688]
[1772125486476,0.00560198,1990.8,1990.0,13.1048741]
[1772125488580,1.10517948,1991.3,1990.6,13.1048741]
[1772125488781,14.01671124,1991.9,1990.8,13.1048741]
[1772125489182,14.01671124,1991.7,1990.9,13.1048741]
[1772125489585,20.18720124,1993.3,1991.8,13.1048741]
[1772125489779,14.01671124,1992.5,1991.2,13.1048741]
[1772125489977,14.01671124,1992.3,1991.0,13.1048741]
[1772125490479,14.02323045,1992.3,1991.0,13.11083532]
[1772125491575,14.02323045,1992.3,1991.2,13.1048741]
[1772125491576,0.00651921,1992.3,1991.2,13.1048741]
[1772125491771,14.02323045,1992.3,1991.2,13.1048741]
[1772125493585,14.01671124,1992.1,1991.0,0.00596122]
[1772125493783,14.01671124,1991.9,1991.0,0.00596122]
[1772125495085,14.01671124,1991.7,1990.4,13.1048741]
[1772125496086,14.01671124,1991.7,1990.4,13.10944315]
[1772125497285,14.01671124,1991.7,1990.4,13.36063315]
[1772125497686,14.01671124,1991.7,1990.5,13.1048741]
[1772125499386,14.01671124,1991.8,1990.5,13.1048741]
[1772125499587,14.01671124,1991.8,1990.9,13.1048741]
[1772125499881,26.34671124,1991.7,1990.9,13.1048741]
[1772125500087,14.01671124,1991.5,1990.5,13.1048741]
[1772125500282,14.01671124,1991.4,1990.5,13.1048741]
[1772125500486,14.01671124,1991.4,1990.4,0.00456905]
[1772125500888,14.01671124,1991.1,1990.0,13.1048741]
[1772125501085,14.01671124,1990.9,1990.0,13.1048741]
[1772125501285,0.25114,1990.8,1989.4,13.1048741]
[1772125501496,14.01671124,1990.7,1989.4,13.1048741]
[1772125501795,14.01671124,1990.5,1989.4,13.11017276]
[1772125501988,12.33,1990.6,1989.5,13.1048741]
[1772125502183,14.01671124,1991.3,1990.1,19.2852041]
[1772125502384,14.01671124,1991.3,1990.3,13.1048741]
[1772125502894,14.01671124,1991.3,1990.4,13.1048741]
[1772125503298,26.35071124,1991.2,1990.4,13.1048741]
[1772125503587,26.34971124,1991.1,1990.4,13.1048741]
[1772125503794,14.01671124,1991.0,1990.2,13.1048741]
[1772125504090,14.01671124,1991.0,1989.7,13.1048741]
[1772125504295,14.01671124,1990.8,1989.3,13.1048741]
[1772125504596,14.01671124,1990.4,1989.0,13.1048741]
[1772125504896,14.01671124,1990.2,1988.8,13.1048741]
[1772125505292,14.01671124,1990.2,1988.9,0.25138]
[1772125505490,14.01671124,1990.2,1989.0,13.1048741]
[1772125505985,14.01671124,1990.5,1989.4,13.1048741]
[1772125506186,14.01671124,1990.8,1989.6,13.1048741]
[1772125507593,14.01671124,1990.8,1990.0,13.1048741]
[1772125507890,12.338,1990.7,1990.0,13.1048741]
[1772125508090,14.01671124,1990.8,1990.0,13.1048741]
[1772125508497,14.01671124,1990.6,1989.6,13.1048741]
[1772125508699,12.339,1990.5,1989.6,13.1048741]
[1772125508998,19.35861301,1991.2,1990.0,13.1048741]
[1772125509292,14.01671124,1991.2,1990.0,13.1048741]
[1772125509485,12.34315764,1991.3,1990.1,6.43155]
[1772125509685,12.34215764,1991.3,1990.2,13.83467499]
[1772125509991,13.64695461,1992.8,1991.6,13.83467499]
[1772125510292,13.64695461,1992.8,1991.1,6.17721]
[1772125510293,13.64695461,1992.4,1991.2,0.25109]
[1772125510492,12.338,1992.3,1991.3,13.83467499]
[1772125510693,12.338,1992.3,1991.0,13.261]
[1772125510694,13.64695461,1992.2,1991.0,13.83467499]
[1772125510894,13.65061291,1992.2,1991.0,0.00362329]
[1772125511098,13.64695461,1992.0,1990.1,13.83467499]
[1772125511395,13.64695461,1991.8,1990.3,13.83467499]
[1772125511592,13.64695461,1991.6,1990.3,13.83467499]
[1772125512193,13.64695461,1991.4,1990.3,13.8395054]
[1772125512792,25.98795461,1991.3,1990.4,13.83467499]
[1772125513000,25.98895461,1991.2,1990.4,13.83467499]
[1772125513193,13.64695461,1991.1,1990.3,0.00483041]
[1772125513594,13.64695461,1991.1,1989.8,13.83467499]
[1772125513791,10.19158243,1992.1,1989.8,13.83467499]
[1772125513792,13.64695461,1991.2,1990.0,13.83467499]
[1772125513993,13.64695461,1992.0,1990.1,13.83467499]
[1772125514197,13.64695461,1991.8,1990.1,13.83467499]
[1772125514498,13.64695461,1991.6,1990.1,14.08590499]
[1772125514690,13.64695461,1991.4,1990.1,14.09120585]
[1772125514896,13.64695461,1991.2,1990.1,14.09120585]
[1772125516297,12.34,1991.1,1990.1,14.09120585]
[1772125516697,13.64695461,1991.2,1990.1,14.09120585]
[1772125516893,12.34,1991.1,1990.1,14.09120585]
[1772125517097,13.64695461,1991.5,1990.6,13.83467499]
[1772125517596,13.64695461,1992.1,1991.1,14.08577499]
[1772125517899,12.339,1992.0,1991.1,14.08577499]
[1772125518100,13.64695461,1992.1,1991.1,14.08577499]
[1772125518296,13.64695461,1991.9,1991.1,14.08577499]
[1772125518491,25.98595461,1991.9,1991.1,14.08577499]
[1772125518691,13.64695461,1991.9,1991.1,14.08577499]
[1772125518893,25.98695461,1991.8,1991.1,14.08577499]
[1772125519102,25.98695461,1991.8,1990.7,13.83467499]
[1772125519103,13.64695461,1991.7,1990.7,13.83467499]
[1772125519597,13.64695461,1991.7,1990.9,13.83467499]
[1772125519806,0.0036583,1992.2,1991.4,13.83467499]
[1772125520201,13.65061291,1992.2,1991.4,13.83467499]
[1772125520400,13.65061291,1992.2,1991.2,13.83467499]
[1772125520597,0.0036583,1992.2,1991.2,13.83467499]
[1772125520794,0.0036583,1992.2,1991.5,13.83467499]
[1772125521103,13.64695461,1992.5,1991.5,13.83871257]
[1772125521298,13.64695461,1992.4,1991.5,13.83871257]
[1772125522001,13.64695461,1992.3,1991.5,13.83871257]
[1772125522305,13.64695461,1992.1,1991.0,13.83467499]
[1772125522703,13.64695461,1992.1,1991.2,13.83467499]
[1772125522897,13.6531262,1992.4,1991.6,13.83467499]
[1772125523102,13.6531262,1992.4,1991.6,13.8400923]
[1772125523303,0.00617159,1992.4,1991.6,13.8400923]
[1772125524402,13.64695461,1992.8,1991.8,13.83467499]
[1772125524603,13.64695461,1993.1,1992.0,13.83467499]
[1772125525401,13.65130403,1993.1,1992.0,13.83467499]
[1772125525607,13.65130403,1993.1,1991.6,0.00541731]
[1772125525807,13.64695461,1992.9,1991.6,13.8400923]
[1772125526004,13.64695461,1992.9,1991.6,54.6400923]
[1772125526503,13.64695461,1992.9,1991.6,13.8400923]
[1772125526703,13.64695461,1992.7,1991.6,0.00541731]
[1772125526903,13.64695461,1992.5,1991.6,0.00541731]
[1772125527298,12.329,1992.4,1991.6,0.00541731]
[1772125527503,13.64695461,1992.3,1991.6,0.00541731]
[1772125527910,13.64695461,1992.3,1991.0,13.83467499]
[1772125528110,13.64695461,1992.3,1990.8,13.83467499]
[1772125528905,13.64695461,1992.6,1991.2,15.74008433]
[1772125529107,13.64695461,1992.6,1991.3,13.83467499]
[1772125529508,13.64695461,1992.6,1991.3,20.26242499]
[1772125529710,0.00434942,1993.1,1992.0,13.83467499]
[1772125529910,13.65130403,1993.1,1992.0,13.83467499]
[1772125530405,0.00434942,1993.1,1992.2,13.83467499]
[1772125530610,13.64695461,1993.5,1992.4,13.83467499]
[1772125530804,13.64695461,1993.5,1992.2,0.00453602]
[1772125531010,13.64695461,1993.5,1992.2,13.83921101]
[1772125531705,13.65279871,1993.5,1992.2,13.83921101]
[1772125533713,13.64695461,1993.3,1992.2,13.83921101]
[1772125534109,13.64695461,1993.3,1992.2,0.00453602]
[1772125534307,13.89779461,1993.3,1992.2,0.00453602]
[1772125534506,13.64695461,1993.1,1992.2,0.00453602]
[1772125534711,5.76558317,1993.2,1992.2,0.00453602]
[1772125534712,25.98295461,1993.0,1992.2,0.00453602]
[1772125535012,12.51644318,1992.9,1992.2,0.00453602]
[1772125535414,12.51644318,1992.9,1992.2,12.27573099]
[1772125535611,12.51644318,1992.9,1992.2,0.00453602]
[1772125536416,12.51644318,1992.9,1991.6,12.27119497]
[1772125537218,12.51644318,1992.9,1991.6,12.27754513]
[1772125538423,12.51644318,1992.7,1991.6,12.27754513]
[1772125538613,12.51644318,1992.5,1991.6,12.27754513]
[1772125538818,12.51644318,1992.5,1991.6,0.00635016]
[1772125539223,12.51644318,1992.5,1991.6,12.27754513]
[1772125540218,24.37680079,1992.8,1991.6,12.52858513]
[1772125540818,5.71405149,1993.2,1991.8,11.79566417]
[1772125540819,12.03180079,1993.1,1991.8,11.79566417]
[1772125541319,12.03180079,1992.9,1991.8,11.79566417]
[1772125541517,12.03180079,1992.7,1991.8,11.79566417]
[1772125541719,0.25092,1992.6,1991.6,0.00635016]
[1772125541919,12.03180079,1992.5,1991.6,0.00635016]
[1772125542114,12.03180079,1992.3,1991.6,0.00635016]
[1772125542322,12.03180079,1992.3,1991.6,11.80201433]
[1772125542916,12.03180079,1993.0,1991.8,11.79566417]
[1772125543117,12.03180079,1992.8,1991.6,11.80201433]
[1772125543318,12.03180079,1992.6,1991.6,11.80201433]
[1772125543522,12.03180079,1992.6,1991.6,12.05305433]
[1772125544322,12.03180079,1992.6,1991.6,11.80201433]
[1772125545224,12.349,1992.7,1991.6,11.80201433]
[1772125545721,12.352,1993.0,1991.8,11.79566417]
[1772125546026,12.03180079,1993.0,1992.0,11.79566417]
[1772125546424,12.03180079,1993.2,1992.2,11.79566417]
[1772125546628,12.03180079,1993.2,1992.4,11.79566417]